bitfinex-derivatives/quotes_ETHF0:USTF0_20240901
["timestamp","ask_amount","ask_price","bid_price","bid_amount"]
[1725170427266,6.54796,2466.6,2466.3,2.8]
[1725170427448,6.3047,2466.6,2466.3,2.8]
[1725170429862,6.54797,2466.6,2466.3,2.8]
[1725170430060,0.24327,2466.5,2466.3,2.8]
[1725170430658,4.0544,2466.4,2466.2,0.0060931]
[1725170430861,0.24329,2466.3,2466.2,0.0060931]
[1725170431360,4.0544,2466.3,2466.2,0.0060931]
[1725170431566,4.29769,2466.3,2466.2,0.0060931]
[1725170433255,9.5125,2466.6,2466.2,0.0060931]
[1725170433455,6.3047,2466.6,2466.2,0.0060931]
[1725170433662,0.24329,2466.3,2466.2,0.0060931]
[1725170434661,4.29769,2466.3,2466.2,0.0060931]
[1725170434967,7.50549,2466.3,2466.2,0.0060931]
[1725170435564,17.66949273,2466.3,2465.6,3.2078]
[1725170435767,0.24339,2465.3,2465.0,4.26855423]
[1725170435959,3.81614,2465.9,2465.0,6.0078]
[1725170435960,3.2078,2465.6,2465.0,6.0078]
[1725170436165,1.9321,2465.2,2465.0,6.0078]
[1725170436365,0.24341,2465.1,2465.0,6.0078]
[1725170437079,1.9321,2465.2,2465.0,6.0078]
[1725170437282,0.0060931,2465.3,2465.0,6.0078]
[1725170437463,0.0060931,2465.3,2465.0,15.36930886]
[1725170437670,0.0060931,2465.3,2465.0,15.61271886]
[1725170437869,0.0060931,2465.3,2465.1,1.7436]
[1725170438075,0.0060931,2465.3,2465.2,1.6524]
[1725170438272,0.0060931,2465.3,2465.1,4.0568]
[1725170438477,0.0060931,2465.3,2465.0,6.0078]
[1725170438775,0.2434,2465.2,2465.0,6.0078]
[1725170438975,1.9277,2465.2,2465.0,6.0078]
[1725170439175,1.6843,2465.2,2465.0,6.0078]
[1725170439370,1.9277,2465.2,2465.0,6.0078]
[1725170439681,0.24341,2465.1,2465.0,3.2078]
[1725170439882,1.85791,2465.1,2465.0,3.2078]
[1725170440094,1.6145,2465.1,2465.0,3.2078]
[1725170440381,1.6843,2465.2,2465.0,3.2078]
[1725170440677,1.9277,2465.2,2465.0,3.2078]
[1725170441172,1.6843,2465.2,2465.0,3.2078]
[1725170441371,0.24341,2465.1,2465.0,3.2078]
[1725170442481,4.30021,2465.1,2465.0,3.2078]
[1725170443579,4.30021,2465.1,2464.8,0.0060931]
[1725170443580,0.24342,2464.9,2464.8,0.0060931]
[1725170444084,4.30022,2464.9,2464.8,0.0060931]
[1725170446182,0.24342,2464.9,2464.8,0.0060931]
[1725170449486,1.88381,2465.0,2464.8,0.0060931]
[1725170450879,0.24342,2464.9,2464.8,0.0060931]
[1725170451678,1.88382,2465.0,2464.8,0.0060931]
[1725170452279,0.24342,2464.9,2464.8,0.0060931]
[1725170452886,1.6843,2465.2,2464.8,0.0060931]
[1725170453188,1.6843,2465.2,2464.8,3.0495231]
[1725170453485,3.69637956,2465.3,2464.9,6.91982]
[1725170453676,3.69637956,2465.3,2464.9,8.60362]
[1725170454483,3.69637956,2465.3,2465.1,2.8]
[1725170454685,0.0060931,2465.3,2465.2,3.4512]
[1725170454876,13.87498646,2466.0,2465.2,3.4512]
[1725170454877,12.25498646,2466.0,2465.5,0.24337]
[1725170455080,5.40498646,2466.0,2465.6,6.38541249]
[1725170455283,1.7147,2466.0,2465.6,6.38541249]
[1725170455494,0.2433,2466.2,2465.6,6.38541249]
[1725170455785,3.69028646,2466.3,2465.6,6.38541249]
[1725170455786,0.2494031,2466.1,2465.6,6.38541249]
[1725170456190,0.0060931,2466.1,2465.8,2.8]
[1725170457886,0.0060931,2466.1,2465.6,6.38541249]
[1725170458079,0.0060931,2466.1,2465.6,6.62876249]
[1725170458788,0.0060931,2466.1,2465.6,6.38541249]
[1725170458978,0.2494031,2466.1,2465.6,6.38541249]
[1725170459185,0.0060931,2466.1,2465.6,6.38541249]
[1725170459493,3.69028646,2466.9,2466.0,2.8]
[1725170459683,3.69028646,2466.9,2466.6,2.8]
[1725170459992,3.58481,2467.1,2466.6,2.8]
[1725170460194,0.24322,2467.0,2466.4,4.4992]
[1725170460582,0.00397727,2466.9,2466.5,0.00608063]
[1725170462185,0.00397727,2466.9,2466.6,2.8]
[1725170462576,0.00397727,2466.9,2466.5,0.00608063]
[1725170463694,0.00397727,2466.9,2466.6,3.2078]
[1725170464986,0.00397727,2466.9,2466.6,7.2614]
[1725170465293,0.00397727,2466.9,2466.6,3.2078]
[1725170466891,0.00397727,2466.9,2466.6,4.9016]
[1725170467481,0.00397727,2466.9,2466.6,7.7016]
[1725170469989,0.00397727,2466.9,2466.6,7.94486]
[1725170470193,0.00397727,2466.9,2466.6,7.7016]
[1725170470497,0.00397727,2466.9,2466.6,9.4035]
[1725170471606,0.00397727,2466.9,2466.6,3.2078]
[1725170471607,0.24325,2466.7,2466.6,3.2078]
[1725170471790,0.24326,2466.6,2466.5,0.00608063]
[1725170472094,1.6241,2466.6,2466.5,0.00608063]
[1725170473894,0.00397727,2466.9,2466.5,0.00608063]
[1725170474101,1.6695,2466.8,2466.5,0.00608063]
[1725170474401,0.24326,2466.6,2466.5,0.00608063]
[1725170475297,10.29766,2466.6,2466.5,0.00608063]
[1725170475802,12.02776,2466.6,2466.5,0.00608063]
[1725170476895,12.02776,2466.6,2465.8,2.8]
[1725170476896,0.2433,2466.2,2465.8,2.8]
[1725170477097,1.6041,2466.1,2465.8,2.8]
[1725170480200,1.99308,2466.4,2466.0,2.8]
[1725170480404,3.64588,2466.4,2466.0,2.8]
[1725170481501,3.69028646,2466.5,2466.3,2.8]
[1725170481695,1.7058,2466.6,2466.3,2.8]
[1725170482294,1.7058,2466.6,2466.3,4.4231]
[1725170482902,1.7058,2466.6,2466.3,4.66638]
[1725170483100,1.7058,2466.6,2466.3,7.87418]
[1725170483495,1.7058,2466.6,2466.3,7.6309]
[1725170484499,1.6528,2466.8,2466.3,7.6309]
[1725170484500,1.6528,2466.8,2466.5,2.8]
[1725170484707,0.00397727,2466.9,2466.6,1.6886]
[1725170486408,0.00397727,2466.9,2466.5,2.8]
[1725170487105,3.33827727,2466.9,2466.5,2.8]
[1725170488002,0.24324,2466.8,2466.5,2.8]
[1725170488505,3.33827727,2466.9,2466.5,2.8]
[1725170489505,0.00397727,2466.9,2466.5,2.8]
[1725170489705,0.00397727,2466.9,2466.6,1.6923]
[1725170489908,0.00397727,2466.9,2466.6,3.3216]
[1725170492008,1.62907727,2466.9,2466.6,3.3216]
[1725170496105,1.62907727,2466.9,2466.6,3.56485]
[1725170496309,0.00397727,2466.9,2466.6,3.56485]
[1725170496507,0.00397727,2466.9,2466.6,3.3216]
[1725170496902,0.00397727,2466.9,2466.6,3.56485]
[1725170497103,0.00397727,2466.9,2466.8,2.8]
[1725170497616,0.00397727,2466.9,2466.8,8.5646]
[1725170498210,0.00397727,2466.9,2466.8,8.80784]
[1725170498411,0.00397727,2466.9,2466.8,20.16993173]
[1725170498723,0.00199318,2466.9,2466.8,20.16993173]
[1725170499217,0.00199318,2466.9,2466.8,20.56339095]
[1725170500208,0.00066598,2466.9,2466.8,23.21527653]
[1725170500404,0.00066598,2466.9,2466.8,20.56339095]
[1725170501021,0.00066598,2466.9,2466.8,22.68634238]
[1725170501705,0.00066598,2466.9,2466.8,22.68628015]
[1725170502312,1.7395,2467.5,2467.1,0.2432]
[1725170502515,1.7395,2467.5,2467.4,2.8]
[1725170503412,1.98267,2467.5,2467.4,2.8]
[1725170503618,6.03547,2467.5,2467.2,0.00608063]
[1725170503813,1.6568,2467.4,2467.2,0.00608063]
[1725170504517,0.24319,2467.3,2467.2,0.00608063]
[1725170504908,4.29599,2467.3,2467.2,0.00608063]
[1725170506809,10.29599,2467.3,2467.2,0.00608063]
[1725170507012,0.24322,2467.0,2466.7,2.8]
[1725170507316,3.2847,2466.9,2466.7,2.8]
[1725170509323,0.24324,2466.8,2466.7,2.8]
[1725170509826,3.52793,2466.9,2466.7,2.8]
[1725170510125,1.7413,2466.8,2466.7,2.8]
[1725170512729,1.98454,2466.8,2466.7,2.8]
[1725170513113,0.24325,2466.7,2466.6,0.00608063]
[1725170513321,0.24325,2466.7,2466.1,2.64911886]
[1725170513322,4.0536,2466.7,2466.1,2.64911886]
[1725170513628,0.24329,2466.3,2466.0,2.8]
[1725170513817,3.3644,2466.2,2466.0,2.8]
[1725170514318,0.24332,2466.0,2465.9,3.21388063]
[1725170514522,0.24331,2466.1,2465.9,3.21388063]
[1725170514723,4.29851,2466.1,2465.9,3.21388063]
[1725170514924,0.24332,2466.0,2465.9,3.21388063]
[1725170515425,4.29852,2466.0,2465.9,0.00608063]
[1725170516119,7.50632,2466.0,2465.9,0.00608063]
[1725170518925,0.24336,2465.6,2465.5,3.2078]
[1725170519426,4.29936,2465.6,2465.5,3.2078]
[1725170519629,4.056,2465.6,2465.5,3.2078]
[1725170520020,5.6519,2465.6,2465.5,3.2078]
[1725170520531,0.24333,2465.9,2465.5,6.0078]
[1725170520830,1.5959,2465.9,2465.5,6.25116]
[1725170522025,1.5536,2465.8,2465.5,6.0078]
[1725170522328,0.24336,2465.6,2465.5,3.2078]
[1725170522825,4.29936,2465.6,2465.5,3.2078]
[1725170523125,0.24338,2465.4,2465.3,0.00608063]
[1725170523331,1.86997,2465.5,2465.3,0.00608063]
[1725170523723,1.5737,2465.4,2465.3,0.00608063]
[1725170524327,5.6297,2465.4,2465.3,0.00608063]
[1725170526024,5.87308,2465.4,2465.3,0.00608063]
[1725170526533,0.24341,2465.1,2464.9,2.8]
[1725170526828,1.717,2465.0,2464.9,2.8]
[1725170527032,1.717,2465.0,2464.6,6.0078]
[1725170527033,0.24343,2464.9,2464.6,6.0078]
[1725170527232,1.83373,2464.9,2464.6,6.20601822]
[1725170527430,1.83373,2464.9,2464.6,2.8]
[1725170527431,0.24343,2464.8,2464.6,2.8]
[1725170529121,1.83373,2464.9,2464.6,2.8]
[1725170529430,1.72308063,2465.0,2464.6,6.0078]
[1725170529431,0.00608063,2465.0,2464.6,6.0078]
[1725170529732,0.00608063,2465.0,2464.9,6.0078]
[1725170530224,0.00608063,2465.0,2464.9,10.0646]
[1725170530425,0.00608063,2465.0,2464.9,6.0078]
[1725170530626,0.00608063,2465.0,2464.9,10.30802]
[1725170531635,1.6169,2465.8,2464.9,16.0646]
[1725170531833,7.14140646,2466.0,2465.4,3.04337]
[1725170532138,7.14140646,2466.0,2465.5,3.55216]
[1725170532139,6.89808646,2466.0,2465.5,3.55216]
[1725170532530,0.00608063,2466.0,2465.9,2.8]
[1725170532731,0.00608063,2466.0,2465.9,3.00735541]
[1725170536235,0.00608063,2466.0,2465.8,3.2078]
[1725170536236,4.06128063,2466.0,2465.8,3.2078]
[1725170536548,0.00608063,2466.0,2465.8,3.2078]
[1725170536854,0.24940063,2466.0,2465.8,3.40645628]
[1725170537141,1.85730063,2466.0,2465.8,0.19865628]
[1725170537342,1.61398063,2466.0,2465.6,2.8]
[1725170537543,1.61398063,2466.0,2465.6,3.04335]
[1725170537736,0.00608063,2466.0,2465.8,0.24333]
[1725170537943,0.00608063,2466.0,2465.8,0.20432297]
[1725170538243,0.00608063,2466.0,2465.7,5.16724]
[1725170539043,0.00608063,2466.0,2465.7,4.9239]
[1725170539347,0.00608063,2466.0,2465.8,0.20399842]
[1725170540034,0.00608063,2466.0,2465.8,0.24333]
[1725170540240,0.00608063,2466.0,2465.9,0.2011992]
[1725170540434,0.00608063,2466.0,2465.7,4.9239]
[1725170544351,0.24940063,2466.0,2465.7,4.9239]
[1725170544643,0.24333,2465.9,2465.7,4.9239]
[1725170544848,1.82943,2465.9,2465.7,4.9239]
[1725170545153,0.00608063,2466.0,2465.7,4.9239]
[1725170546735,0.00608063,2466.0,2465.9,2.8]
[1725170546937,0.00608063,2466.0,2465.9,3.00307708]
[1725170548545,0.00608063,2466.0,2465.9,7.30160708]
[1725170548742,3.69028646,2466.8,2466.3,0.24328]
[1725170548942,1.77883,2466.9,2466.4,10.4239]
[1725170549143,1.5356,2466.9,2466.4,10.4239]
[1725170549544,1.5356,2466.9,2466.4,3.2078]
[1725170549853,1.5356,2466.9,2466.4,3.21388063]
[1725170549854,0.24327,2466.5,2466.4,3.21388063]
[1725170550049,0.24327,2466.5,2466.4,0.00608063]
[1725170550248,4.29767,2466.5,2466.4,0.00608063]
[1725170551050,4.0544,2466.5,2466.4,0.00608063]
[1725170551754,4.29767,2466.5,2466.4,0.00608063]
[1725170552352,4.0544,2466.5,2466.4,0.00608063]
[1725170552555,4.7151,2466.8,2466.4,4.06048063]
[1725170552556,4.95834,2466.8,2466.4,4.06048063]
[1725170552756,1.54168063,2466.9,2466.4,4.06048063]
[1725170552757,1.54168063,2466.9,2466.5,2.8]
[1725170552946,3.01018063,2466.9,2466.5,4.3226]
[1725170553152,3.01018063,2466.9,2466.5,5.7539]
[1725170554151,3.01018063,2466.9,2466.5,5.99716]
[1725170554353,3.01018063,2466.9,2466.4,0.00608063]
[1725170554555,0.24325,2466.7,2466.4,0.00608063]
[1725170554859,0.24325,2466.7,2466.5,3.2078]
[1725170555054,3.01018063,2466.9,2466.4,0.00608063]
[1725170555262,0.24324,2466.8,2466.4,0.00608063]
[1725170555858,3.25341063,2466.9,2466.4,3.21388063]
[1725170556250,3.01018063,2466.9,2466.4,3.45716063]
[1725170556452,3.01018063,2466.9,2466.5,3.04326]
[1725170556759,1.54168063,2466.9,2466.7,2.8]
[1725170556956,1.54168063,2466.9,2466.7,6.0078]
[1725170557270,0.00608063,2466.9,2466.7,10.0614]
[1725170557555,0.00608063,2466.9,2466.8,12.52464602]
[1725170558365,0.00608063,2466.9,2466.8,18.52464602]
[1725170558560,0.00304735,2466.9,2466.8,12.52464602]
[1725170560269,0.00304735,2466.9,2466.8,18.52464602]
[1725170564380,0.00304735,2466.9,2466.8,12.52464602]
[1725170566777,0.00304735,2466.9,2466.8,18.52464602]
[1725170566973,0.00304735,2466.9,2466.8,12.52464602]
[1725170567364,0.00304735,2466.9,2466.8,18.52464602]
[1725170567676,0.00304735,2466.9,2466.8,12.52464602]
[1725170568174,0.00304735,2466.9,2466.8,18.52464602]
[1725170568866,0.00304735,2466.9,2466.8,12.52464602]
[1725170571379,0.00304735,2466.9,2466.8,18.52464602]
[1725170572370,0.00304735,2466.9,2466.8,11.05124602]
[1725170572682,0.00304735,2466.9,2466.8,6.99764602]
[1725170574080,0.00304735,2466.9,2466.8,11.05124602]
[1725170574783,0.00304735,2466.9,2466.8,17.05124602]
[1725170577387,0.00304735,2466.9,2466.8,18.11089356]
[1725170577782,1.4617,2467.5,2467.3,0.24319]
[1725170577979,1.4617,2467.5,2467.4,2.8]
[1725170578689,1.4617,2467.5,2467.4,3.00435464]
[1725170580078,1.4617,2467.5,2467.4,0.20435464]
[1725170580979,5.75767,2467.5,2467.4,0.20435464]
[1725170581182,5.5145,2467.5,2467.4,0.20435464]
[1725170581385,1.4617,2467.5,2467.4,6.0078]
[1725170581591,1.4617,2467.5,2467.4,6.2081616]
[1725170581793,1.4617,2467.5,2467.4,6.4513416]
[1725170583184,1.4617,2467.5,2467.4,6.2081616]
[1725170584585,1.4617,2467.5,2467.4,10.5041416]
[1725170585282,1.5262,2467.6,2467.5,0.24317]
[1725170585784,1.5262,2467.6,2467.5,4.29597]
[1725170585985,0.00608063,2467.7,2467.6,0.24316]
[1725170590189,0.00608063,2467.7,2467.6,9.57249744]
[1725170590386,10.54028646,2468.4,2467.9,0.24312]
[1725170590585,3.2078,2468.7,2467.9,6.0078]
[1725170590586,0.2431,2468.2,2467.9,6.0078]
[1725170590783,4.4361,2468.3,2467.9,6.0078]
[1725170590784,0.24312,2468.1,2467.9,6.0078]
[1725170590990,4.4361,2468.3,2467.9,6.0078]
[1725170590991,0.24312,2468.0,2467.9,6.0078]
[1725170591193,0.24311,2468.2,2467.9,6.0078]
[1725170591388,4.29511,2468.2,2467.9,6.0078]
[1725170591582,0.24311,2468.1,2467.9,6.0078]
[1725170592095,4.052,2468.1,2467.9,6.0078]
[1725170592889,0.2431,2468.2,2467.9,6.0078]
[1725170593388,4.68527063,2468.3,2467.9,6.0078]
[1725170593597,4.44218063,2468.3,2467.9,6.0078]
[1725170593785,4.44218063,2468.3,2468.1,2.8]
[1725170594092,8.49338063,2468.3,2468.1,2.8]
[1725170595697,4.0512,2468.2,2467.9,6.0078]
[1725170595882,4.68527063,2468.3,2467.9,6.0078]
[1725170596082,4.44218063,2468.3,2467.9,6.0078]
[1725170596284,4.44218063,2468.3,2468.1,2.8]
[1725170598884,4.44218063,2468.3,2468.2,3.2078]
[1725170600194,0.00608063,2468.3,2468.2,7.259]
[1725170600398,0.00608063,2468.3,2468.2,3.2078]
[1725170600582,4.05728063,2468.3,2468.2,3.2078]
[1725170600895,4.05728063,2468.3,2468.1,2.8]
[1725170601084,1.5478,2468.2,2468.1,2.8]
[1725170601487,5.5998,2468.2,2468.1,2.8]
[1725170602600,5.5998,2468.2,2467.9,6.40105682]
[1725170602901,2.9599,2468.1,2467.9,6.0078]
[1725170603792,7.0119,2468.1,2467.9,6.0078]
[1725170604684,7.0119,2468.1,2467.8,0.39936432]
[1725170604685,0.24313,2467.9,2467.8,0.00608063]
[1725170605088,4.29513,2467.9,2467.8,0.00608063]
[1725170605685,4.29513,2467.9,2467.5,3.2078]
[1725170605686,10.052,2467.9,2467.5,3.2078]
[1725170605886,0.24318,2467.4,2467.3,0.20612249]
[1725170606500,4.0528,2467.4,2467.2,2.8]
[1725170606696,2.9801,2467.3,2467.2,2.8]
[1725170606892,2.9801,2467.3,2467.2,3.00115885]
[1725170607199,7.0329,2467.3,2467.2,3.00115885]
[1725170607398,7.0329,2467.3,2467.2,3.3945468]
[1725170607606,7.0329,2467.3,2467.2,3.00115885]
[1725170607794,7.0329,2467.3,2467.2,3.39454702]
[1725170609288,5.5298,2467.3,2467.2,3.39454702]
[1725170609597,1.4928,2467.7,2467.2,7.48937817]
[1725170609900,2.984,2467.7,2467.4,2.8]
[1725170613204,3.22715,2467.7,2467.4,2.8]
[1725170613708,2.984,2467.7,2467.4,3.04318]
[1725170614003,2.984,2467.7,2467.4,2.8]
[1725170614798,2.984,2467.7,2467.5,0.39333971]
[1725170614997,2.984,2467.7,2467.5,3.2078]
[1725170615905,3.69028646,2468.1,2467.5,3.2078]
[1725170616106,0.00608063,2468.3,2467.8,6.0078]
[1725170616107,4.4119,2468.2,2467.8,6.0078]
[1725170616498,0.24313,2467.9,2467.6,2.8]
[1725170616701,8.72631754,2468.1,2467.6,2.8]
[1725170616702,1.4786,2467.8,2467.6,2.8]
[1725170616903,3.045,2467.7,2467.6,2.8]
[1725170617106,7.0978,2467.7,2467.6,3.19333356]
[1725170617298,1.5171,2467.7,2467.6,4.249087]
[1725170617909,1.5171,2467.7,2467.6,3.19333356]
[1725170618410,1.5171,2467.7,2467.6,4.249087]
[1725170618611,1.5171,2467.7,2467.6,3.19333356]
[1725170619113,0.90914571,2467.7,2467.6,4.249087]
[1725170619316,1.5279,2468.2,2467.6,4.249087]
[1725170619502,1.72171,2468.1,2467.7,0.39333356]
[1725170619809,1.72171,2468.1,2467.8,0.39333356]
[1725170620010,5.77371,2468.1,2467.6,3.85575344]
[1725170620203,1.72171,2468.1,2467.7,0.39330967]
[1725170620397,1.72171,2468.1,2467.6,3.85575344]
[1725170620398,1.72171,2468.1,2467.8,0.39330967]
[1725170620604,5.77371,2468.1,2467.6,3.85575344]
[1725170620815,1.4786,2468.1,2467.7,0.39330996]
[1725170621013,1.4786,2468.1,2467.8,0.39330996]
[1725170621309,1.4786,2468.1,2467.9,3.19329941]
[1725170621513,1.4786,2468.1,2467.9,4.2885]
[1725170622817,1.5116,2468.2,2467.9,4.53162]
[1725170623503,1.5116,2468.2,2468.0,0.3932832]
[1725170623712,1.5116,2468.2,2467.9,4.2885]
[1725170623922,0.00608063,2468.3,2468.0,0.39328302]
[1725170624109,0.00608063,2468.3,2467.9,4.2885]
[1725170624313,0.00608063,2468.3,2468.0,0.3932835]
[1725170624507,0.00608063,2468.3,2467.9,4.2885]
[1725170624903,0.00608063,2468.3,2468.0,0.39328719]
[1725170625103,0.00608063,2468.3,2467.9,4.2885]
[1725170625519,0.00608063,2468.3,2467.9,4.53163]
[1725170625707,0.00608063,2468.3,2468.1,2.8]
[1725170627213,0.00608063,2468.3,2468.1,3.04311]
[1725170627414,0.00608063,2468.3,2468.2,0.39324034]
[1725170628416,0.00608063,2468.3,2468.2,4.44444034]
[1725170628616,3.69028646,2468.7,2468.5,0.24307]
[1725170628812,3.93328646,2469.2,2468.6,6.56864034]
[1725170629009,1.401,2469.1,2468.9,2.8]
[1725170631218,0.00608063,2469.2,2468.9,2.8]
[1725170631427,1.40708063,2469.2,2468.9,2.8]
[1725170631612,0.24301,2469.1,2468.9,2.8]
[1725170631921,1.4746,2469.0,2468.9,2.8]
[1725170632312,5.525,2469.0,2468.9,2.8]
[1725170632706,0.24303,2468.9,2468.8,0.00608063]
[1725170632911,4.29343,2468.9,2468.8,0.00608063]
[1725170634224,0.24302,2469.1,2468.8,0.20560567]
[1725170634525,1.5172,2469.0,2468.8,0.20560567]
[1725170634722,1.5172,2469.0,2468.9,2.8]
[1725170635117,1.40708063,2469.2,2468.9,2.8]
[1725170635715,1.512,2469.1,2468.9,2.8]
[1725170638336,0.00608063,2469.2,2469.0,3.45081]
[1725170638627,0.00608063,2469.2,2469.1,5.672]
[1725170639321,0.00608063,2469.2,2469.1,11.09021349]
[1725170640317,0.00608063,2469.2,2469.1,15.13981349]
[1725170641625,0.00608063,2469.2,2469.1,14.89680349]
[1725170641826,0.00608063,2469.2,2469.1,2.8]
[1725170643425,4.29869063,2469.2,2469.0,3.2078]
[1725170643734,2.8047,2469.1,2469.0,3.2078]
[1725170644121,0.00608063,2469.2,2469.0,3.45082]
[1725170644324,0.00608063,2469.2,2469.0,7.50122]
[1725170644527,0.00608063,2469.2,2469.1,2.8]
[1725170645627,4.05568063,2469.2,2469.1,2.8]
[1725170646030,0.00608063,2469.2,2469.1,2.8]
[1725170647035,0.00608063,2469.2,2469.1,4.1831]
[1725170647334,0.00608063,2469.2,2469.1,4.42611]
[1725170647526,0.00608063,2469.2,2469.1,2.8]
[1725170648225,0.00608063,2469.2,2469.1,8.21334906]
[1725170649628,0.00608063,2469.2,2469.1,12.26294906]
[1725170650021,2.861,2469.8,2469.4,0.24297]
[1725170650224,2.861,2469.8,2469.7,2.8]
[1725170650432,1.4553,2469.8,2469.7,2.8]
[1725170652637,5.19028646,2470.0,2469.7,2.8]
[1725170652835,8.09538646,2470.0,2469.9,2.8]
[1725170653131,4.4051,2470.0,2469.9,2.8]
[1725170654139,8.4539,2470.0,2469.9,2.8]
[1725170654440,4.4051,2470.0,2469.9,2.8]
[1725170654642,8.4539,2470.0,2469.9,2.8]
[1725170655638,8.69682,2470.0,2469.9,2.8]
[1725170656237,4.4051,2470.0,2469.9,2.8]
[1725170657434,4.64802,2470.0,2469.9,2.8]
[1725170657739,8.69682,2470.0,2469.9,2.8]
[1725170660040,8.4539,2470.0,2469.9,2.8]
[1725170660727,8.69682,2470.0,2469.9,2.8]
[1725170661339,8.4539,2470.0,2469.9,2.8]
[1725170661540,8.69682,2470.0,2469.9,2.8]
[1725170663047,8.69682,2470.0,2469.9,10.29953]
[1725170663048,1.5,2470.0,2469.9,10.29953]
[1725170663734,1.5,2470.0,2469.9,10.0566]
[1725170664136,1.74292,2470.0,2469.9,3.2078]
[1725170664338,5.5488,2470.0,2469.8,2.8]
[1725170664539,4.50523,2469.9,2469.8,2.8]
[1725170665139,4.2623,2469.9,2469.8,2.8]
[1725170665742,8.55403,2469.9,2469.8,2.8]
[1725170666053,4.2623,2469.9,2469.8,2.8]
[1725170666252,8.3111,2469.9,2469.8,2.8]
[1725170667845,1.5,2470.0,2469.9,0.24293]
[1725170668045,1.5,2470.0,2469.8,2.8]
[1725170668351,1.5,2470.0,2469.9,1.17]
[1725170670050,5.79173,2470.0,2469.9,1.17]
[1725170670248,1.5,2470.0,2469.9,1.17]
[1725170673456,1.5,2470.0,2469.9,2.6465]
[1725170673963,1.5,2470.0,2469.9,6.93823]
[1725170674745,1.5,2470.0,2469.9,10.14603]
[1725170675857,1.5,2470.0,2469.9,11.54553]
[1725170678254,1.5,2470.0,2469.9,11.3026]
[1725170678450,1.5,2470.0,2469.9,4.3778]
[1725170678663,1.5,2470.0,2469.7,1.30240935]
[1725170678664,1.5,2470.0,2469.7,0.39297513]
[1725170678856,1.4334,2469.9,2469.6,5.10997513]
[1725170679058,1.4334,2469.9,2469.8,1.17]
[1725170680776,5.4822,2469.9,2469.8,1.17]
[1725170681562,5.72513,2469.9,2469.8,1.17]
[1725170681764,0.24295,2469.8,2469.6,3.2078]
[1725170681965,0.24295,2469.8,2469.7,1.17]
[1725170682159,4.0488,2469.8,2469.7,1.17]
[1725170682552,4.29174,2469.8,2469.7,1.17]
[1725170683057,4.0488,2469.8,2469.7,1.17]
[1725170684868,4.29174,2469.8,2469.7,1.17]
[1725170685773,5.69574,2469.8,2469.7,1.17]
[1725170686855,5.4528,2469.8,2469.7,1.17]
[1725170688767,1.404,2469.8,2469.7,1.17]
[1725170690167,1.404,2469.8,2469.7,1.56303612]
[1725170690475,1.5,2470.0,2469.7,5.61183612]
[1725170690663,1.5,2470.0,2469.9,1.17]
[1725170691064,1.5,2470.0,2469.9,1.56299481]
[1725170691257,1.5,2470.0,2469.9,1.17]
[1725170691570,1.5,2470.0,2469.9,1.56300232]
[1725170693361,1.5,2470.0,2469.9,3.00950232]
[1725170693668,1.5,2470.0,2469.9,1.56300232]
[1725170694471,1.5,2470.0,2469.9,2.22945935]
[1725170694675,1.5,2470.0,2469.9,2.62245407]
[1725170694970,3.69028646,2470.8,2469.9,15.87905407]
[1725170695171,3.19457,2470.5,2470.4,1.17]
[1725170695359,0.24288,2470.4,2470.3,1.17]
[1725170695759,0.24288,2470.4,2470.1,1.06674841]
[1725170695760,0.2429,2470.2,2470.1,1.17608063]
[1725170695962,0.2429,2470.2,2470.1,1.56904891]
[1725170696164,4.2909,2470.2,2470.1,1.56904891]
[1725170696460,4.048,2470.2,2470.1,1.56904891]
[1725170696675,2.9517,2470.5,2470.1,7.12235894]
[1725170696862,2.9517,2470.5,2470.3,1.17]
[1725170697058,2.9517,2470.5,2470.4,0.39295601]
[1725170697274,2.9517,2470.5,2470.3,1.17]
[1725170698571,2.9517,2470.5,2470.4,0.39295365]
[1725170700273,1.3754,2470.7,2470.4,1.45362143]
[1725170700469,2.8707,2470.7,2470.6,1.17]
[1725170700869,2.8707,2470.7,2470.6,1.56291214]
[1725170701480,6.9179,2470.7,2470.6,1.17]
[1725170701674,6.9179,2470.7,2470.5,1.17]
[1725170701875,3.11355,2470.7,2470.5,1.17]
[1725170702076,2.8707,2470.7,2470.5,1.17]
[1725170702376,2.8707,2470.7,2470.3,3.2078]
[1725170702377,2.8707,2470.7,2470.6,1.17]
[1725170702774,6.9179,2470.7,2470.6,1.17]
[1725170703282,2.8707,2470.7,2470.6,1.17]
[1725170703481,6.9179,2470.7,2470.6,1.17]
[1725170704373,0.24286,2470.6,2470.4,1.17]
[1725170704778,0.24287,2470.5,2470.4,1.17]
[1725170705274,0.24288,2470.4,2470.3,3.2078]
[1725170705480,1.76678,2470.4,2470.3,3.2078]
[1725170705679,5.81478,2470.4,2470.3,3.2078]
[1725170706275,0.24288,2470.5,2470.3,3.2078]
[1725170706473,1.5239,2470.6,2470.5,1.17]
[1725170706677,3.69028646,2470.8,2470.5,1.17]
[1725170706878,6.69608646,2470.8,2470.7,1.17]
[1725170709080,6.93892646,2470.8,2470.7,1.17]
[1725170709282,0.24286,2470.7,2470.6,1.17]
[1725170709482,6.69608646,2470.8,2470.6,1.17]
[1725170709683,0.24285,2470.7,2470.6,1.17]
[1725170710271,4.29005,2470.7,2470.6,1.17]
[1725170710679,4.29005,2470.7,2470.2,1.30356778]
[1725170710880,0.24286,2470.6,2470.3,0.39293464]
[1725170711169,6.69608646,2470.8,2470.5,1.17]
[1725170711170,6.93893646,2470.8,2470.5,1.17]
[1725170711384,6.69608646,2470.8,2470.7,1.17]
[1725170714284,3.69028646,2470.8,2470.7,1.17]
[1725170714590,6.66928646,2470.8,2470.7,1.17]